[Event "19th Rochefort Chess Festival - Masters"]
[Site "Rochefort, France"]
[Date "2020.02.22"]
[Round "1.1"]
[White "Van Den Doel, Erik"]
[Black "Bailleul, Adrien"]
[Result "1-0"]
[TimeControl "1h30/40 - 30' + [30'']"]
[WhiteElo "2583"]
[BlackElo "2061"]

1. d4 {[%clk 01:30:57]} {[%emt 00:00:03]} Nf6 {[%clk 01:30:50]} {[%emt
00:00:10]} 2. Nf3 {[%clk 01:31:20]} {[%emt 00:00:06]} c5 {[%clk 01:31:01]}
{[%emt 00:00:19]} 3. c3 {[%clk 01:30:26]} {[%emt 00:01:24]} d5 {[%clk
01:30:33]} {[%emt 00:00:58]} 4. dxc5 {[%clk 01:29:26]} {[%emt 00:01:31]} e6
{[%clk 01:30:12]} {[%emt 00:00:50]} 5. Be3 {[%clk 01:24:28]} {[%emt 00:05:29]}
Nbd7 {[%clk 01:22:18]} {[%emt 00:08:24]} 6. b4 {[%clk 01:22:13]} {[%emt
00:02:44]} a5 {[%clk 01:21:11]} {[%emt 00:01:36]} 7. Nbd2 {[%clk 01:02:45]}
{[%emt 00:19:58]} axb4 {[%clk 01:14:03]} {[%emt 00:07:39]} 8. cxb4 {[%clk
01:03:10]} {[%emt 00:00:05]} e5 {[%clk 01:13:04]} {[%emt 00:01:28]} 9. Bg5
{[%clk 01:01:20]} {[%emt 00:02:20]} Be7 {[%clk 01:08:50]} {[%emt 00:04:45]} 10.
e3 {[%clk 00:59:32]} {[%emt 00:02:18]} O-O {[%clk 01:08:57]} {[%emt 00:00:23]}
11. Be2 {[%clk 00:59:39]} {[%emt 00:00:23]} e4 {[%clk 01:04:26]} {[%emt
00:05:01]} 12. Nd4 {[%clk 00:59:02]} {[%emt 00:01:06]} Ne5 {[%clk 01:03:12]}
{[%emt 00:01:45]} 13. O-O {[%clk 00:51:36]} {[%emt 00:07:56]} b6 {[%clk
01:01:08]} {[%emt 00:02:33]} 14. N2b3 {[%clk 00:43:09]} {[%emt 00:08:58]} bxc5
{[%clk 00:59:48]} {[%emt 00:01:50]} 15. Nxc5 {[%clk 00:43:09]} {[%emt
00:00:30]} Bxc5 {[%clk 00:59:39]} {[%emt 00:00:38]} 16. bxc5 {[%clk 00:43:35]}
{[%emt 00:00:04]} Ba6 {[%clk 00:59:20]} {[%emt 00:00:48]} 17. a4 {[%clk
00:38:20]} {[%emt 00:05:46]} Bxe2 {[%clk 00:58:50]} {[%emt 00:01:00]} 18. Qxe2
{[%clk 00:38:44]} {[%emt 00:00:06]} Nd3 {[%clk 00:59:10]} {[%emt 00:00:09]} 19.
c6 {[%clk 00:38:05]} {[%emt 00:01:09]} Qd6 {[%clk 00:56:14]} {[%emt 00:03:26]}
20. Rfb1 {[%clk 00:36:21]} {[%emt 00:02:13]} Rfb8 {[%clk 00:55:13]} {[%emt
00:01:32]} 21. Rxb8+ {[%clk 00:29:17]} {[%emt 00:07:34]} Rxb8 {[%clk 00:55:30]}
{[%emt 00:00:12]} 22. a5 {[%clk 00:29:39]} {[%emt 00:00:09]} Rb2 {[%clk
00:53:05]} {[%emt 00:02:55]} 23. Qxb2 {[%clk 00:29:21]} {[%emt 00:00:48]} Nxb2
{[%clk 00:53:12]} {[%emt 00:00:23]} 24. a6 {[%clk 00:29:46]} {[%emt 00:00:05]}
1-0

[Event "19th Rochefort Chess Festival - Masters"]
[Site "Rochefort, France"]
[Date "2020.02.22"]
[Round "1.5"]
[White "Korneev, Oleg"]
[Black "Mota, Pankit"]
[Result "1-0"]
[TimeControl "1h30/40 - 30' + [30'']"]
[WhiteElo "2505"]
[BlackElo "2048"]

1. e4 {[%clk 01:31:00]} {[%emt 00:19:35]} e6 {[%clk 01:30:44]} {[%emt
00:00:16]} 2. d4 {[%clk 01:31:27]} {[%emt 00:00:03]} d5 {[%clk 01:31:08]}
{[%emt 00:00:06]} 3. Nd2 {[%clk 01:31:53]} {[%emt 00:00:04]} Nf6 {[%clk
01:31:32]} {[%emt 00:00:07]} 4. e5 {[%clk 01:32:20]} {[%emt 00:00:03]} Nfd7
{[%clk 01:31:56]} {[%emt 00:00:06]} 5. Bd3 {[%clk 01:32:40]} {[%emt 00:00:10]}
c5 {[%clk 01:32:19]} {[%emt 00:00:07]} 6. c3 {[%clk 01:33:08]} {[%emt
00:00:03]} Nc6 {[%clk 01:32:43]} {[%emt 00:00:05]} 7. Ne2 {[%clk 01:33:35]}
{[%emt 00:00:02]} cxd4 {[%clk 01:33:05]} {[%emt 00:00:08]} 8. cxd4 {[%clk
01:34:03]} {[%emt 00:00:03]} f6 {[%clk 01:33:27]} {[%emt 00:00:08]} 9. exf6
{[%clk 01:34:16]} {[%emt 00:00:17]} Nxf6 {[%clk 01:33:50]} {[%emt 00:00:07]} 10.
O-O {[%clk 01:34:42]} {[%emt 00:00:04]} Bd6 {[%clk 01:33:53]} {[%emt 00:00:26]}
11. Nf3 {[%clk 01:35:10]} {[%emt 00:00:03]} Qc7 {[%clk 01:33:25]} {[%emt
00:00:58]} 12. Bg5 {[%clk 01:34:24]} {[%emt 00:01:15]} O-O {[%clk 01:32:29]}
{[%emt 00:01:26]} 13. Rc1 {[%clk 01:34:53]} {[%emt 00:00:01]} h6 {[%clk
01:30:04]} {[%emt 00:02:55]} 14. Bh4 {[%clk 01:33:04]} {[%emt 00:02:20]} a6
{[%clk 01:22:31]} {[%emt 00:08:03]} 15. Bg3 {[%clk 01:33:12]} {[%emt 00:00:22]}
Nh5 {[%clk 01:22:38]} {[%emt 00:00:22]} 16. Bxd6 {[%clk 01:24:50]} {[%emt
00:08:52]} Qxd6 {[%clk 01:23:00]} {[%emt 00:00:08]} 17. Ng3 {[%clk 01:17:16]}
{[%emt 00:08:04]} Nf4 {[%clk 00:56:40]} {[%emt 00:26:49]} 18. Bb1 {[%clk
01:17:18]} {[%emt 00:00:28]} Rf6 {[%clk 00:55:52]} {[%emt 00:01:18]} 19. Re1
{[%clk 01:07:39]} {[%emt 00:10:09]} Bd7 {[%clk 00:52:08]} {[%emt 00:04:15]} 20.
Ne5 {[%clk 01:03:09]} {[%emt 00:05:00]} Raf8 {[%clk 00:51:24]} {[%emt
00:01:13]} 21. Ng4 {[%clk 01:01:00]} {[%emt 00:02:39]} Qb4 {[%clk 00:45:26]}
{[%emt 00:06:27]} 22. Nxf6+ {[%clk 00:58:44]} {[%emt 00:02:48]} Rxf6 {[%clk
00:45:41]} {[%emt 00:00:14]} 23. b3 {[%clk 00:25:30]} {[%emt 00:33:45]} Nxd4
{[%clk 00:32:40]} {[%emt 00:13:30]} 24. Kh1 {[%clk 00:23:41]} {[%emt 00:02:19]}
Qb6 {[%clk 00:24:16]} {[%emt 00:08:53]} 25. Nh5 {[%clk 00:21:59]} {[%emt
00:02:12]} Nxh5 {[%clk 00:19:45]} {[%emt 00:05:01]} 26. Qxh5 {[%clk 00:22:21]}
{[%emt 00:00:09]} Rxf2 {[%clk 00:16:21]} {[%emt 00:03:54]} 27. Rf1 {[%clk
00:20:28]} {[%emt 00:02:23]} Nf5 {[%clk 00:15:48]} {[%emt 00:01:02]} 28. Bxf5
{[%clk 00:17:26]} {[%emt 00:03:33]} Rxf1+ {[%clk 00:11:33]} {[%emt 00:04:45]}
29. Rxf1 {[%clk 00:17:54]} {[%emt 00:00:02]} exf5 {[%clk 00:11:54]} {[%emt
00:00:08]} 30. Qf3 {[%clk 00:17:49]} {[%emt 00:00:36]} Qe6 {[%clk 00:10:47]}
{[%emt 00:01:29]} 31. h3 {[%clk 00:13:55]} {[%emt 00:04:32]} Bc6 {[%clk
00:10:17]} {[%emt 00:00:59]} 32. Qxf5 {[%clk 00:13:25]} {[%emt 00:01:01]} Qe2
{[%clk 00:09:09]} {[%emt 00:01:37]} 33. Qf8+ {[%clk 00:12:30]} {[%emt
00:01:26]} Kh7 {[%clk 00:09:37]} {[%emt 00:00:02]} 34. Qf2 {[%clk 00:12:46]}
{[%emt 00:00:14]} Qe7 {[%clk 00:06:33]} {[%emt 00:03:31]} 35. Kh2 {[%clk
00:09:52]} {[%emt 00:03:27]} Qd6+ {[%clk 00:05:24]} {[%emt 00:01:38]} 36. Qf4
{[%clk 00:09:57]} {[%emt 00:00:26]} Qc5 {[%clk 00:05:00]} {[%emt 00:00:54]} 37.
Qf5+ {[%clk 00:07:15]} {[%emt 00:03:13]} Kg8 {[%clk 00:02:23]} {[%emt
00:03:06]} 38. Qe6+ {[%clk 00:07:17]} {[%emt 00:00:27]} Kh7 {[%clk 00:02:06]}
{[%emt 00:00:47]} 39. Qe5 {[%clk 00:05:24]} {[%emt 00:02:25]} Qc2 {[%clk
00:00:55]} {[%emt 00:01:37]} 40. Qf5+ {[%clk 00:03:14]} {[%emt 00:02:44]} Qxf5
{[%clk 00:01:22]} {[%emt 00:00:03]} 41. Rxf5 {[%clk 00:03:40]} {[%emt
00:00:04]} Kg6 {[%clk 00:28:49]} {[%emt 00:03:02]} 42. g4 {[%clk 00:33:23]}
{[%emt 00:00:48]} a5 {[%clk 00:27:26]} {[%emt 00:01:53]} 43. Kg3 {[%clk
00:33:43]} {[%emt 00:00:10]} d4 {[%clk 00:24:50]} {[%emt 00:03:06]} 44. Rxa5
{[%clk 00:33:13]} {[%emt 00:01:00]} Kf6 {[%clk 00:24:04]} {[%emt 00:01:16]} 45.
h4 {[%clk 00:30:42]} {[%emt 00:03:01]} g6 {[%clk 00:22:18]} {[%emt 00:02:16]}
46. Kf4 {[%clk 00:30:41]} {[%emt 00:00:30]} Ke6 {[%clk 00:21:42]} {[%emt
00:01:06]} 47. g5 {[%clk 00:28:40]} {[%emt 00:02:32]} hxg5+ {[%clk 00:21:03]}
{[%emt 00:01:09]} 48. Rxg5 {[%clk 00:28:39]} {[%emt 00:00:31]} Kf6 {[%clk
00:21:16]} {[%emt 00:00:17]} 49. Rc5 {[%clk 00:27:38]} {[%emt 00:01:29]} 1-0

[Event "19th Rochefort Chess Festival - Masters"]
[Site "Rochefort, France"]
[Date "2020.02.22"]
[Round "1.3"]
[White "Burmakin, Vladimir"]
[Black "Derieux, Christian"]
[Result "1-0"]
[TimeControl "1h30/40 - 30' + [30'']"]
[WhiteElo "2514"]
[BlackElo "2053"]

1. Nf3 {[%clk 01:30:57]} {[%emt 00:00:02]} g6 {[%clk 01:15:12]} {[%emt
00:15:48]} 2. d4 {[%clk 01:30:49]} {[%emt 00:00:39]} Bg7 {[%clk 01:15:31]}
{[%emt 00:00:11]} 3. g3 {[%clk 01:31:11]} {[%emt 00:00:07]} b5 {[%clk
01:14:59]} {[%emt 00:01:02]} 4. Bg2 {[%clk 01:30:25]} {[%emt 00:01:16]} Bb7
{[%clk 01:15:04]} {[%emt 00:00:26]} 5. Qd3 {[%clk 01:29:29]} {[%emt 00:01:26]}
c5 {[%clk 01:09:45]} {[%emt 00:05:49]} 6. Qxb5 {[%clk 01:27:30]} {[%emt
00:02:29]} Bc6 {[%clk 01:09:04]} {[%emt 00:01:11]} 7. Qxc5 {[%clk 01:27:23]}
{[%emt 00:00:37]} Na6 {[%clk 01:05:46]} {[%emt 00:03:48]} 8. Qa3 {[%clk
01:27:27]} {[%emt 00:00:26]} Qb6 {[%clk 01:02:34]} {[%emt 00:03:41]} 9. c3
{[%clk 01:27:52]} {[%emt 00:00:05]} Nh6 {[%clk 00:55:47]} {[%emt 00:07:17]} 10.
O-O {[%clk 01:27:19]} {[%emt 00:01:03]} Nc7 {[%clk 00:51:34]} {[%emt 00:04:43]}
11. Nbd2 {[%clk 01:27:21]} {[%emt 00:00:27]} a5 {[%clk 00:48:43]} {[%emt
00:03:22]} 12. Qb3 {[%clk 01:24:40]} {[%emt 00:03:11]} Qa6 {[%clk 00:43:58]}
{[%emt 00:05:15]} 13. Qc4 {[%clk 01:23:48]} {[%emt 00:01:22]} Bb5 {[%clk
00:41:38]} {[%emt 00:02:51]} 14. Qxc7 {[%clk 01:23:02]} {[%emt 00:01:16]} d6
{[%clk 00:41:44]} {[%emt 00:00:25]} 15. c4 {[%clk 01:23:19]} {[%emt 00:00:13]}
Ba4 {[%clk 00:41:55]} {[%emt 00:00:18]} 16. c5 {[%clk 01:22:58]} {[%emt
00:00:51]} 1-0

[Event "19th Rochefort Chess Festival - Masters"]
[Site "Rochefort, France"]
[Date "2020.02.22"]
[Round "1.4"]
[White "Mas, Victor"]
[Black "Maiorov, Nikita"]
[Result "0-1"]
[TimeControl "1h30/40 - 30' + [30'']"]
[WhiteElo "2049"]
[BlackElo "2506"]

1. d4 {[%clk 01:30:56]} {[%emt 00:00:03]} Nf6 {[%clk 01:27:31]} {[%emt
00:03:30]} 2. Nf3 {[%clk 01:31:16]} {[%emt 00:00:10]} e6 {[%clk 01:27:35]}
{[%emt 00:00:27]} 3. c4 {[%clk 01:31:36]} {[%emt 00:00:09]} b6 {[%clk
01:27:59]} {[%emt 00:00:06]} 4. g3 {[%clk 01:31:23]} {[%emt 00:00:42]} Bb7
{[%clk 01:28:05]} {[%emt 00:00:24]} 5. Bg2 {[%clk 01:31:45]} {[%emt 00:00:08]}
Bb4+ {[%clk 01:28:31]} {[%emt 00:00:05]} 6. Nbd2 {[%clk 01:31:58]} {[%emt
00:00:16]} O-O {[%clk 01:28:49]} {[%emt 00:00:12]} 7. O-O {[%clk 01:32:14]}
{[%emt 00:00:13]} d5 {[%clk 01:29:14]} {[%emt 00:00:06]} 8. Ne5 {[%clk
01:28:13]} {[%emt 00:04:30]} Be7 {[%clk 01:19:52]} {[%emt 00:09:52]} 9. b3
{[%clk 01:20:20]} {[%emt 00:08:24]} a5 {[%clk 01:19:32]} {[%emt 00:00:51]} 10.
a3 {[%clk 01:14:17]} {[%emt 00:06:33]} c5 {[%clk 01:19:05]} {[%emt 00:00:56]}
11. e3 {[%clk 01:08:33]} {[%emt 00:06:14]} cxd4 {[%clk 01:16:23]} {[%emt
00:03:13]} 12. exd4 {[%clk 01:08:52]} {[%emt 00:00:11]} Ra7 {[%clk 01:14:19]}
{[%emt 00:02:35]} 13. Bb2 {[%clk 01:05:35]} {[%emt 00:03:47]} Nbd7 {[%clk
01:01:42]} {[%emt 00:13:07]} 14. Re1 {[%clk 00:57:32]} {[%emt 00:08:33]} Qa8
{[%clk 00:59:05]} {[%emt 00:03:08]} 15. Qe2 {[%clk 00:49:33]} {[%emt 00:08:27]}
a4 {[%clk 00:55:32]} {[%emt 00:04:05]} 16. Nxd7 {[%clk 00:46:19]} {[%emt
00:03:44]} Nxd7 {[%clk 00:55:56]} {[%emt 00:00:06]} 17. b4 {[%clk 00:46:37]}
{[%emt 00:00:12]} dxc4 {[%clk 00:54:54]} {[%emt 00:01:31]} 18. Bxb7 {[%clk
00:46:47]} {[%emt 00:00:20]} Qxb7 {[%clk 00:54:24]} {[%emt 00:01:00]} 19. Nxc4
{[%clk 00:47:14]} {[%emt 00:00:03]} b5 {[%clk 00:53:04]} {[%emt 00:01:50]} 20.
Ne3 {[%clk 00:45:45]} {[%emt 00:01:58]} Nf6 {[%clk 00:52:15]} {[%emt 00:01:20]}
21. Rad1 {[%clk 00:36:53]} {[%emt 00:09:22]} Nd5 {[%clk 00:51:38]} {[%emt
00:01:07]} 22. Qh5 {[%clk 00:30:34]} {[%emt 00:06:48]} Rd8 {[%clk 00:49:23]}
{[%emt 00:02:46]} 23. Rc1 {[%clk 00:27:28]} {[%emt 00:03:35]} h6 {[%clk
00:47:36]} {[%emt 00:02:18]} 24. Ng4 {[%clk 00:22:35]} {[%emt 00:05:22]} Bf8
{[%clk 00:41:26]} {[%emt 00:06:40]} 25. Rc2 {[%clk 00:18:06]} {[%emt 00:04:59]}
Rc8 {[%clk 00:38:33]} {[%emt 00:03:23]} 26. Rce2 {[%clk 00:18:34]} {[%emt
00:00:02]} Qe7 {[%clk 00:30:24]} {[%emt 00:08:39]} 27. Bc1 {[%clk 00:17:44]}
{[%emt 00:01:21]} Rac7 {[%clk 00:29:22]} {[%emt 00:01:31]} 28. Bf4 {[%clk
00:17:58]} {[%emt 00:00:16]} Nxf4 {[%clk 00:24:23]} {[%emt 00:05:29]} 29. gxf4
{[%clk 00:18:25]} {[%emt 00:00:02]} Qd7 {[%clk 00:23:52]} {[%emt 00:01:02]} 30.
Ne3 {[%clk 00:16:24]} {[%emt 00:02:31]} g6 {[%clk 00:23:17]} {[%emt 00:01:05]}
31. Qg4 {[%clk 00:14:29]} {[%emt 00:02:25]} Qxd4 {[%clk 00:23:18]} {[%emt
00:00:29]} 32. h4 {[%clk 00:13:37]} {[%emt 00:01:22]} h5 {[%clk 00:21:31]}
{[%emt 00:02:18]} 33. Qg5 {[%clk 00:13:33]} {[%emt 00:00:34]} Qd3 {[%clk
00:19:13]} {[%emt 00:02:47]} 34. Nf1 {[%clk 00:10:51]} {[%emt 00:03:13]} Qxa3
{[%clk 00:13:25]} {[%emt 00:06:18]} 35. Ng3 {[%clk 00:09:56]} {[%emt 00:01:24]}
Be7 {[%clk 00:12:31]} {[%emt 00:01:23]} 36. Qh6 {[%clk 00:08:46]} {[%emt
00:01:41]} Bf8 {[%clk 00:12:16]} {[%emt 00:00:45]} 37. Qg5 {[%clk 00:09:13]}
{[%emt 00:00:02]} Qf3 {[%clk 00:11:26]} {[%emt 00:01:20]} 38. Re3 {[%clk
00:08:24]} {[%emt 00:01:20]} Qg4 {[%clk 00:11:38]} {[%emt 00:00:18]} 39. Qxb5
{[%clk 00:08:48]} {[%emt 00:00:06]} a3 {[%clk 00:11:20]} {[%emt 00:00:48]} 40.
Rxa3 {[%clk 00:08:59]} {[%emt 00:00:18]} Qxf4 {[%clk 00:11:09]} {[%emt
00:00:40]} 41. Rae3 {[%clk 00:08:36]} {[%emt 00:00:53]} Qxb4 {[%clk 00:10:36]}
{[%emt 00:01:03]} 42. Qf1 {[%clk 00:08:01]} {[%emt 00:01:05]} Qxh4 {[%clk
00:10:53]} {[%emt 00:00:13]} 43. Re4 {[%clk 00:08:30]} {[%emt 00:00:01]} Qf6
{[%clk 00:11:01]} {[%emt 00:00:22]} 44. Qg2 {[%clk 00:08:36]} {[%emt 00:00:25]}
Rc5 {[%clk 00:11:23]} {[%emt 00:00:08]} 45. R1e3 {[%clk 00:08:24]} {[%emt
00:00:42]} h4 {[%clk 00:11:21]} {[%emt 00:00:32]} 46. Ne2 {[%clk 00:08:13]}
{[%emt 00:00:41]} Rg5 {[%clk 00:11:25]} {[%emt 00:00:26]} 47. Rg4 {[%clk
00:08:41]} Rcc5 {[%clk 00:11:13]} {[%emt 00:00:44]} 48. Ree4 {[%clk 00:09:03]}
{[%emt 00:00:08]} Bd6 {[%clk 00:08:57]} {[%emt 00:02:46]} 49. Qh3 {[%clk
00:07:09]} {[%emt 00:02:24]} Rce5 {[%clk 00:06:20]} {[%emt 00:03:07]} 50. Rxe5
{[%clk 00:06:42]} {[%emt 00:00:57]} Qxe5 {[%clk 00:06:36]} {[%emt 00:00:14]} 51.
Qxh4 {[%clk 00:06:58]} {[%emt 00:00:14]} Rh5 {[%clk 00:04:50]} {[%emt
00:02:16]} 52. Qd8+ {[%clk 00:07:26]} {[%emt 00:00:01]} Kg7 {[%clk 00:05:13]}
{[%emt 00:00:07]} 53. Ng3 {[%clk 00:07:51]} {[%emt 00:00:06]} Qe1+ {[%clk
00:04:39]} {[%emt 00:01:04]} 54. Kg2 {[%clk 00:08:09]} {[%emt 00:00:12]} Bxg3
{[%clk 00:04:30]} {[%emt 00:00:39]} 0-1

[Event "19th Rochefort Chess Festival - Masters"]
[Site "Rochefort, France"]
[Date "2020.02.22"]
[Round "1.2"]
[White "Coste, Thierry"]
[Black "Vorobiov, Evgeny E."]
[Result "0-1"]
[TimeControl "1h30/40 - 30' + [30'']"]
[WhiteElo "2056"]
[BlackElo "2520"]

1. Nf3 {[%clk 01:30:56]} {[%emt 00:00:02]} g6 {[%clk 01:30:26]} {[%emt
00:00:35]} 2. d4 {[%clk 01:30:57]} {[%emt 00:00:28]} Nf6 {[%clk 01:30:21]}
{[%emt 00:00:35]} 3. Nc3 {[%clk 01:31:01]} {[%emt 00:00:26]} d5 {[%clk
01:30:14]} {[%emt 00:00:37]} 4. Bf4 {[%clk 01:30:55]} {[%emt 00:00:36]} Bg7
{[%clk 01:29:57]} {[%emt 00:00:47]} 5. e3 {[%clk 01:31:06]} {[%emt 00:00:20]}
O-O {[%clk 01:30:14]} {[%emt 00:00:12]} 6. Be2 {[%clk 01:31:20]} {[%emt
00:00:16]} c5 {[%clk 01:25:43]} {[%emt 00:05:01]} 7. Ne5 {[%clk 01:29:13]}
{[%emt 00:02:37]} cxd4 {[%clk 01:22:33]} {[%emt 00:03:40]} 8. exd4 {[%clk
01:29:29]} {[%emt 00:00:14]} Nc6 {[%clk 01:22:14]} {[%emt 00:00:49]} 9. O-O
{[%clk 01:28:58]} {[%emt 00:01:01]} Bf5 {[%clk 01:21:43]} {[%emt 00:01:01]} 10.
Nxc6 {[%clk 01:27:26]} {[%emt 00:02:01]} bxc6 {[%clk 01:22:08]} {[%emt
00:00:06]} 11. Na4 {[%clk 01:27:18]} {[%emt 00:00:38]} Nd7 {[%clk 01:20:23]}
{[%emt 00:02:15]} 12. g4 {[%clk 01:25:40]} {[%emt 00:02:08]} Be6 {[%clk
01:18:31]} {[%emt 00:02:23]} 13. c3 {[%clk 01:22:28]} {[%emt 00:03:41]} f5
{[%clk 01:15:45]} {[%emt 00:03:16]} 14. g5 {[%clk 01:18:04]} {[%emt 00:04:54]}
Bf7 {[%clk 01:13:22]} {[%emt 00:02:53]} 15. Bg3 {[%clk 01:18:01]} {[%emt
00:00:32]} e5 {[%clk 01:11:22]} {[%emt 00:02:30]} 16. dxe5 {[%clk 01:17:45]}
{[%emt 00:00:46]} Nxe5 {[%clk 01:11:15]} {[%emt 00:00:37]} 17. f4 {[%clk
01:17:28]} {[%emt 00:00:46]} Nd7 {[%clk 01:10:07]} {[%emt 00:01:38]} 18. Bf2
{[%clk 01:17:26]} {[%emt 00:00:32]} Re8 {[%clk 01:04:21]} {[%emt 00:06:17]} 19.
Bf3 {[%clk 01:15:34]} {[%emt 00:02:22]} Qc7 {[%clk 00:54:53]} {[%emt 00:09:58]}
20. Qd2 {[%clk 01:12:59]} {[%emt 00:03:05]} Qa5 {[%clk 00:52:55]} {[%emt
00:02:29]} 21. b3 {[%clk 01:11:56]} {[%emt 00:01:32]} Rad8 {[%clk 00:51:44]}
{[%emt 00:01:41]} 22. Rfd1 {[%clk 00:50:49]} {[%emt 00:21:37]} Nb6 {[%clk
00:45:49]} {[%emt 00:06:24]} 23. Bd4 {[%clk 00:47:06]} {[%emt 00:04:14]} Nxa4
{[%clk 00:44:01]} {[%emt 00:02:18]} 24. Bxg7 {[%clk 00:46:25]} {[%emt
00:01:10]} Kxg7 {[%clk 00:44:24]} {[%emt 00:00:08]} 25. Qd4+ {[%clk 00:46:40]}
{[%emt 00:00:15]} Kg8 {[%clk 00:44:49]} {[%emt 00:00:05]} 26. bxa4 {[%clk
00:46:54]} {[%emt 00:00:17]} c5 {[%clk 00:44:40]} {[%emt 00:00:39]} 27. Qd2
{[%clk 00:46:46]} {[%emt 00:00:38]} Qxa4 {[%clk 00:44:05]} {[%emt 00:01:06]} 28.
Rab1 {[%clk 00:46:51]} {[%emt 00:00:24]} d4 {[%clk 00:38:54]} {[%emt 00:05:40]}
0-1



[ePGN "0.1;DGT LiveChess/2.2.5"]